Workbook

Sheet NSU
B1: Aino Lepola | E1: 1.4.2005 Kangasala
B2: SUPERPESIS | E2: Runkosarja | I2: Kärkilyönnit (KL), pesänvälit | P2: Ylempi loppusarja | U2: Alempi loppusarja | AB2: Arvo-ottelut ja mitalit
B3: Vuosi | C3: Sija | D3: Seura | E3: OTT | F3: KUN | G3: LÖI | H3: TOI | I3: KL | J3: 0 > 1 | K3: 1 > 2 | L3: 2 > 3 | M3: 3 > k | N3: KL-% | P3: OTT | Q3: KUN | R3: LÖI | S3: TOI | T3: KL | U3: OTT | V3: KUN | W3: LÖI | X3: TOI | Y3: KL | Z3: IL | AA3: LL | AB3: Halli | AC3: K | AD3: H | AE3: P
B4: 2022 | C4: 3. | D4: Jana | F4: ykköspesis
B5: 2023 | C5: 3. | D5: Jana | F5: ykköspesis
B6: 2023 | C6: 2. | D6: Manse PP | E6: 4 | F6: 0 | G6: 1 | H6: 4 | I6: 6 | J6: 4 | K6: 1 | L6: 0 | M6: 1 | N6: 60.0 % | O6: 10 | AD6: 1
B7: 2024 | C7: 5. | D7: Fera | E7: 22 | F7: 0 | G7: 2 | H7: 7 | I7: 37 | J7: 34 | K7: 1 | L7: 0 | M7: 2 | N7: 48.1 % | O7: 77 | P7: 3 | Q7: 0 | R7: 0 | S7: 1 | T7: 8
B8: Yhteensä | E8: =SUM(E4:E7) -> 26 | F8: 0 | G8: 3 | H8: 11 | I8: 43 | J8: 38 | K8: 2 | L8: 0 | M8: 3 | N8: =PRODUCT(I8/O8) -> 49.4 % | O8: =SUM(O4:O7) -> 87 | P8: =SUM(P4:P7) -> 3 | Q8: 0 | R8: 0 | S8: 1 | T8: 8 | U8: 0 | V8: 0 | W8: 0 | X8: 0 | Y8: 0 | Z8: 0 | AA8: 0 | AB8: 0 | AC8: 0 | AD8: 1 | AE8: 0
B9: Pesispörssi | D9: =SUM(F8:H8)+((I8-F8-G8)/3)+(E8/3)+(Z8*25)+(AA8*25)+(AB8*10)+(AC8*25)+(AD8*20)+(AE8*15)-20 -> 36.0
B11: URA SUPERISSA | E11: OTT | F11: KUN | G11: LÖI | H11: TOI | I11: KL | K11: ka/L | L11: ka/T | M11: ka/KL | N11: KL-% | P11: ENSIMMÄISET
B12: Runkosarja | E12: =PRODUCT(E8) -> 26 | F12: =PRODUCT(F8) -> 0 | G12: =PRODUCT(G8) -> 3 | H12: =PRODUCT(H8) -> 11 | I12: =PRODUCT(I8) -> 43 | K12: =PRODUCT((F12+G12)/E12) -> 0.12 | L12: =PRODUCT(H12/E12) -> 0.42 | M12: =PRODUCT(I12/E12) -> 1.65 | N12: =PRODUCT(N8) -> 49.4 % | O12: =PRODUCT(O8) -> 87 | P12: Ottelu | R12: 08.06. 2023 Manse PP - Mailattaret 2-0 (7-2, 10-1) | AA12: 1. ottelu | AC12: 18 v 2 kk 7 pv
B13: Ylempi loppusarja | E13: =PRODUCT(P8) -> 3 | F13: =PRODUCT(Q8) -> 0 | G13: 0 | H13: 1 | I13: 8 | K13: =PRODUCT((F13+G13)/E13) -> 0.00 | L13: =PRODUCT(H13/E13) -> 0.33 | M13: =PRODUCT(I13/E13) -> 2.67 | N13: =PRODUCT(I13/O13) -> 40.0 % | O13: 20 | P13: Lyöty | R13: 08.06. 2023 Manse PP - Mailattaret 2-0 (7-2, 10-1) | AA13: 1. ottelu | AC13: 18 v 2 kk 7 pv
B14: Alempi loppusarja | P14: Tuotu | R14: 08.06. 2023 Manse PP - Mailattaret 2-0 (7-2, 10-1) | AA14: 1. ottelu | AC14: 18 v 2 kk 7 pv
B15: KAIKKI | E15: =SUM(E12:E14) -> 29 | F15: =SUM(F12:F14) -> 0 | G15: =SUM(G12:G14) -> 3 | H15: =SUM(H12:H14) -> 12 | I15: =SUM(I12:I14) -> 51 | K15: =PRODUCT((F15+G15)/E15) -> 0.10 | L15: =PRODUCT(H15/E15) -> 0.41 | M15: =PRODUCT(I15/E15) -> 1.76 | N15: =PRODUCT(I15/O15) -> 47.7 % | O15: =SUM(O12:O14) -> 107 | P15: Kunnari
B17: Seurat | D17: Manse PP (2005)
D18: Fera (1957)

Sheet Arvo-ottelut
B1: ITÄ - LÄNSI - KORTTI
B2: Aino Lepola | C2: 1.4.2005 Kangasala
B3: B-TYTÖT | C3: Itä - Länsi, tulos | D3: Joukkue | E3: Seura | G3: V | H3: T | I3: H | J3: Up. | K3: Lj. | L3: Palk. | M3: O | N3: K | O3: L | P3: T | Q3: KL | R3: 1 | S3: 2 | T3: 3 | U3: k | V3: KL-% | W3: Pelinjohtaja | X3: Yleisöä
B4: 29.06. 2024 Jyväskylä | C4: 0-2 (0-3, 0-3) | D4: Länsi | E4: Fera | G4: 1 | J4: 1v | K4: 2 | M4: 1 | Q4: 3/4 | S4: 2/3 | U4: 1/1 | V4: 75.0 % | W4: Tero Tuomela | X4: 1422
